bitfinex/quotes_SOLUSD_20260226
["timestamp","ask_amount","ask_price","bid_price","bid_amount"]
[1772073859643,0.48817233,88.349,88.31,3.54658748]
[1772073859851,0.48817233,88.349,88.31,4.02547777]
[1772073860050,0.48817233,88.349,88.311,11.80250795]
[1772073860342,4.03475981,88.34,88.312,0.47889029]
[1772073860527,0.48817233,88.34,88.312,0.47889029]
[1772073861044,0.48817233,88.34,88.311,11.32361766]
[1772073861947,0.48817233,88.34,88.311,11.80250795]
[1772073862943,0.48817233,88.338,88.3,3.54658748]
[1772073863145,0.48817233,88.338,88.301,0.47889029]
[1772073864533,11.32028481,88.337,88.302,11.3247718]
[1772073864736,0.48817233,88.336,88.303,0.47889029]
[1772073864937,0.48817233,88.309,88.271,0.47889029]
[1772073865134,3.54658748,88.32,88.281,0.47889029]
[1772073865456,9.5111487,88.32,88.281,0.47889029]
[1772073865754,9.5111487,88.31,88.281,0.47889029]
[1772073866333,9.5111487,88.32,88.281,0.47889029]
[1772073866652,11.32515657,88.299,88.271,0.46331962]
[1772073866844,9.5111487,88.3,88.272,0.46331962]
[1772073867157,0.49004265,88.299,88.272,0.46331962]
[1772073868054,9.5111487,88.29,88.262,0.46331962]
[1772073868257,0.49004265,88.297,88.262,0.46331962]
[1772073869064,10.00119135,88.29,88.262,0.46331962]
[1772073869536,0.49004265,88.289,88.262,0.46331962]
[1772073870055,0.49004265,88.289,88.263,11.7930954]
[1772073870244,0.49004265,88.289,88.263,0.46331962]
[1772073871261,0.49004265,88.287,88.252,0.46331962]
[1772073874559,0.49004265,88.287,88.254,0.45897852]
[1772073874560,11.32682418,88.286,88.254,0.45897852]
[1772073875456,11.32682418,88.286,88.253,11.33105956]
[1772073875457,0.49749192,88.298,88.261,0.45897852]
[1772073877555,0.49749192,88.289,88.263,0.45897852]
[1772073878237,0.49749192,88.296,88.263,0.45897852]
[1772073878442,11.32541309,88.297,88.263,0.45897852]
[1772073878762,0.49749192,88.322,88.291,0.45897852]
[1772073879275,0.49749192,88.338,88.301,0.45897852]
[1772073879646,11.81773105,88.338,88.303,0.45897852]
[1772073879962,0.49749192,88.346,88.321,0.45897852]
[1772073880761,0.49749192,88.344,88.311,0.45897852]
[1772073881667,0.49749192,88.342,88.311,0.45897852]
[1772073881876,0.49749192,88.339,88.3,9.5111487]
[1772073882573,0.49749192,88.339,88.302,0.45897852]
[1772073885079,11.81764859,88.338,88.304,0.45897852]
[1772073885684,0.49749192,88.337,88.304,0.45897852]
[1772073887164,0.49749192,88.335,88.304,0.45897852]
[1772073888974,11.32066927,88.334,88.304,0.45897852]
[1772073889275,0.49749192,88.333,88.304,0.45897852]
[1772073889949,0.49749192,88.319,88.28,3.54876493]
[1772073890154,0.49749192,88.319,88.29,3.54876493]
[1772073890776,11.81816119,88.334,88.284,0.28432314]
[1772073890981,0.49749192,88.333,88.3,3.54876493]
[1772073891166,0.49749192,88.331,88.3,3.54876493]
[1772073891978,0.49749192,88.347,88.311,0.45897852]
[1772073893175,0.49749192,88.358,88.313,0.45897852]
[1772073893482,0.49749192,88.358,88.321,0.45897852]
[1772073895077,0.49749192,88.358,88.332,11.32092559]
[1772073895274,0.1,88.36,88.333,0.45897852]
[1772073895471,0.49749192,88.358,88.32,11.32241074]
[1772073895682,0.49749192,88.358,88.321,0.45897852]
[1772073896278,0.1,88.36,88.331,0.46466663]
[1772073896885,0.1,88.36,88.32,11.32241074]
[1772073896886,39.61113185,88.359,88.32,3.54876493]
[1772073897072,39.61113185,88.359,88.321,0.46466663]
[1772073897468,3.54876493,88.35,88.313,0.46466663]
[1772073898075,3.54876493,88.35,88.315,0.46466663]
[1772073898282,39.61113185,88.359,88.321,0.46466663]
[1772073898480,39.61113185,88.359,88.311,0.46466663]
[1772073898481,3.54876493,88.35,88.311,0.46466663]
[1772073898868,0.49228035,88.349,88.311,0.46466663]
[1772073899278,0.49228035,88.319,88.28,4.01343156]
[1772073899582,11.32272017,88.318,88.281,0.46466663]
[1772073899781,11.32272017,88.318,88.291,0.46466663]
[1772073899961,0.49228035,88.317,88.291,0.46466663]
[1772073900765,11.32203564,88.324,88.291,0.46466663]
[1772073901172,11.81154007,88.345,88.311,0.46466663]
[1772073901583,0.49228035,88.353,88.321,0.46466663]
[1772073901783,11.31836291,88.352,88.321,0.46466663]
[1772073902162,3.64876493,88.36,88.312,11.32348944]
[1772073902163,0.1,88.36,88.331,0.46466663]
[1772073902367,11.31746624,88.359,88.331,0.46466663]
[1772073902570,11.80974659,88.359,88.331,0.46466663]
[1772073902872,0.1,88.36,88.34,3.54876493]
[1772073903072,0.2,88.37,88.35,4.01343156]
[1772073903267,0.2,88.37,88.351,0.46466663]
[1772073903667,11.31618554,88.369,88.333,0.46466663]
[1772073904471,11.31618554,88.369,88.337,3.69383402]
[1772073904666,11.31618554,88.369,88.341,0.46466663]
[1772073905386,0.2,88.37,88.35,3.54876493]
[1772073905590,0.2,88.37,88.351,0.46466663]
[1772073906677,11.31618554,88.369,88.341,0.46466663]
[1772073906889,0.2,88.37,88.341,0.46466663]
[1772073907192,0.2,88.37,88.351,0.46466663]
[1772073908292,0.1,88.39,88.361,0.46466663]
[1772073908700,0.1,88.39,88.371,0.46466663]
[1772073908995,3.64876493,88.42,88.352,39.61427018]
[1772073908996,0.1,88.42,88.391,0.46466663]
[1772073909179,0.49228035,88.419,88.38,3.54876493]
[1772073909376,0.49228035,88.418,88.38,9.48932026]
[1772073909579,0.49228035,88.418,88.4,9.48932026]
[1772073909788,0.1,88.42,88.4,9.48932026]
[1772073910296,11.30748442,88.437,88.41,9.48932026]
[1772073910491,11.30687606,88.442,88.41,9.48932026]
[1772073910698,11.30617115,88.448,88.42,9.48932026]
[1772073911007,0.49228035,88.429,88.38,9.48932026]
[1772073911296,0.49228035,88.409,88.366,0.46466663]
[1772073911495,0.49228035,88.409,88.371,0.46466663]
[1772073911999,11.30617115,88.448,88.39,9.48932026]
[1772073912000,0.49228035,88.419,88.39,9.48932026]
[1772073912176,0.49228035,88.419,88.391,0.46466663]
[1772073912377,0.49228035,88.439,88.4,9.48932026]
[1772073912589,0.49228035,88.439,88.4,9.95398689]
[1772073913179,67.78158989,88.52,88.411,0.46466663]
[1772073913180,0.49228035,88.449,88.411,0.46466663]
[1772073913384,0.49228035,88.439,88.401,0.46466663]
[1772073913583,0.49228035,88.439,88.4,9.48932026]
[1772073913984,0.49228035,88.429,88.392,0.46466663]
[1772073914205,0.49228035,88.429,88.4,9.48932026]
[1772073914502,0.49228035,88.409,88.35,9.48932026]
[1772073914679,101.77771745,88.428,88.351,0.46466663]
[1772073914680,0.49228035,88.4,88.351,0.46466663]
[1772073915001,0.49228035,88.399,88.361,0.46466663]
[1772073915900,0.49228035,88.409,88.371,0.46466663]
[1772073916115,0.49228035,88.418,88.38,9.48932026]
[1772073916299,0.49228035,88.427,88.39,9.95398689]
[1772073916496,0.49228035,88.427,88.391,0.46466663]
[1772073916680,0.49228035,88.427,88.4,9.48932026]
[1772073917082,0.49228035,88.439,88.401,0.46466663]
[1772073917286,0.49228035,88.439,88.4,9.48932026]
[1772073917905,0.49228035,88.439,88.401,0.46466663]
[1772073918507,11.30735656,88.438,88.402,0.46466663]
[1772073919088,11.30735656,88.438,88.39,9.48932026]
[1772073919089,0.49228035,88.429,88.39,9.48932026]
[1772073919300,0.49228035,88.429,88.392,0.46466663]
[1772073920487,11.80091562,88.428,88.393,11.31311302]
[1772073920704,0.49228035,88.427,88.38,9.48932026]
[1772073920913,0.49228035,88.399,88.361,0.46466663]
[1772073921089,0.49228035,88.399,88.35,9.48932026]
[1772073921286,0.49228035,88.399,88.351,0.46466663]
[1772073921507,0.49228035,88.399,88.361,0.46466663]
[1772073922596,0.49228035,88.397,88.363,0.46466663]
[1772073922993,0.49228035,88.389,88.346,3.69383402]
[1772073923211,0.49228035,88.389,88.351,0.46466663]
[1772073924399,0.49228035,88.389,88.339,28.30007131]
[1772073924400,11.31375299,88.388,88.361,0.46466663]
[1772073925412,9.49472326,88.4,88.361,0.46466663]
[1772073925413,11.31319197,88.393,88.361,0.46466663]
[1772073925613,11.31175519,88.404,88.371,0.46466663]
[1772073926002,9.49472326,88.4,88.36,9.49472326]
[1772073926301,0.5364347,88.399,88.353,0.50665806]
[1772073926510,0.5364347,88.389,88.353,0.50665806]
[1772073927412,0.5364347,88.389,88.353,11.82485487]
[1772073928298,0.5364347,88.369,88.322,0.50665806]
[1772073928493,141.40591415,88.398,88.288,0.50665806]
[1772073928494,0.5364347,88.327,88.288,0.50665806]
[1772073928694,10.03115796,88.32,88.288,0.50665806]
[1772073928996,0.5364347,88.319,88.28,9.49472326]
[1772073929204,9.49472326,88.31,88.278,0.50665806]
[1772073929411,0.5364347,88.309,88.271,11.32874896]
[1772073930117,0.5364347,88.299,88.26,9.49472326]
[1772073930302,45.2771734,88.345,88.26,9.49472326]
[1772073930303,0.5364347,88.331,88.291,0.50665806]
[1772073930490,0.5364347,88.331,88.3,9.49472326]
[1772073930692,11.8575065,88.331,88.3,20.81973176]
[1772073930894,11.31990038,88.34,88.301,0.50665806]
[1772073931098,21.35105834,88.34,88.301,0.50665806]
[1772073931294,0.5364347,88.339,88.301,0.50665806]
[1772073932706,11.31910268,88.347,88.312,0.52275854]
[1772073933210,11.31910268,88.347,88.311,11.3234927]
[1772073933211,0.54123693,88.353,88.32,9.49472326]
[1772073933606,0.54123693,88.353,88.321,0.52275854]
[1772073934002,0.54123693,88.353,88.311,39.63253687]
[1772073934003,11.85701809,88.373,88.34,9.49472326]
[1772073934417,0.54123693,88.372,88.331,0.52275854]
[1772073935425,11.85716636,88.371,88.333,0.52275854]
[1772073936818,0.54123693,88.37,88.333,0.52275854]
[1772073937601,0.54123693,88.368,88.306,0.52275854]
[1772073937897,0.54123693,88.349,88.31,9.49472326]
[1772073938099,0.54123693,88.349,88.32,9.49472326]
[1772073938698,0.54123693,88.349,88.311,0.52275854]
[1772073939096,0.54123693,88.349,88.3,9.49472326]
[1772073939301,84.87139155,88.369,88.29,9.49472326]
[1772073939302,0.54123693,88.329,88.29,9.49472326]
[1772073939520,0.54123693,88.329,88.291,0.52275854]
[1772073939723,9.49472326,88.35,88.311,0.52275854]
[1772073940717,11.31874724,88.349,88.312,0.52275854]
[1772073942322,11.31874724,88.349,88.313,0.52275854]
[1772073942514,0.54123693,88.348,88.31,9.49472326]
[1772073942827,0.54123693,88.348,88.311,0.52275854]
[1772073943024,11.31900347,88.347,88.311,0.52275854]
[1772073943234,11.31900347,88.347,88.295,3.69383402]
[1772073943235,0.54123693,88.339,88.302,0.52275854]
[1772073943432,0.54123693,88.339,88.31,9.49472326]
[1772073943635,11.31900347,88.347,88.311,0.52275854]
[1772073944306,0.54123693,88.349,88.311,0.52275854]
[1772073945002,11.31887535,88.348,88.311,0.52275854]
[1772073945419,0.54123693,88.347,88.312,11.32348944]
[1772073945718,0.54123693,88.347,88.313,0.52275854]
[1772073946134,11.85933364,88.355,88.32,10.0174818]
[1772073946425,0.54123693,88.364,88.33,10.0174818]
[1772073946625,0.54123693,88.364,88.331,0.52275854]
[1772073946827,11.31592393,88.372,88.34,9.49472326]
[1772073947003,11.31592393,88.372,88.341,0.52275854]
[1772073950228,11.85716086,88.372,88.341,0.52275854]
[1772073951127,0.54123693,88.369,88.332,0.52275854]
[1772073952715,0.54123693,88.359,88.32,9.49472326]
[1772073952909,0.54123693,88.349,88.314,11.32311626]
[1772073953223,0.54123693,88.358,88.321,0.52275854]
[1772073953728,0.54123693,88.358,88.33,9.49472326]
[1772073954226,11.3167747,88.365,88.331,0.52275854]
[1772073954227,11.85801163,88.365,88.331,0.52275854]
[1772073954414,0.54123693,88.364,88.331,0.52275854]
[1772073954614,0.54123693,88.364,88.34,9.49472326]
[1772073955321,11.31695392,88.363,88.34,3.54623391]
[1772073955521,0.54123693,88.362,88.33,3.54623391]
[1772073956627,0.54123693,88.362,88.34,3.54623391]
[1772073956826,0.54123693,88.362,88.323,0.52275854]
[1772073957031,0.54123693,88.362,88.33,3.54623391]
[1772073957233,0.61553797,88.359,88.32,14.86866657]
[1772073957526,0.61553797,88.357,88.32,14.86866657]
[1772073958325,0.61553797,88.357,88.32,3.54623391]
[1772073958524,0.61553797,88.349,88.31,3.54623391]
[1772073958724,0.61553797,88.349,88.299,11.32513418]
[1772073958725,0.61553797,88.339,88.301,0.58177354]
[1772073959513,0.61553797,88.337,88.303,0.58177354]
[1772073959961,0.61553797,88.337,88.31,9.50521158]
[1772073960131,0.61553797,88.343,88.311,0.58177354]
[1772073960311,11.31873202,88.35,88.32,9.50521158]
[1772073960515,104.1,88.38,88.302,11.3247718]
[1772073960516,0.61553797,88.395,88.331,0.58177354]
[1772073960741,0.61553797,88.379,88.34,9.50521158]
[1772073961111,0.61553797,88.389,88.36,9.50521158]
[1772073961432,0.61553797,88.387,88.351,0.58177354]
[1772073961626,0.61553797,88.387,88.35,9.50521158]
[1772073961829,0.61553797,88.387,88.351,0.58177354]
[1772073963740,0.61553797,88.379,88.351,0.58177354]
[1772073963941,11.314009,88.386,88.351,0.58177354]
[1772073964122,0.61553797,88.385,88.351,0.58177354]
[1772073965218,0.61553797,88.383,88.351,0.58177354]
[1772073965539,0.61553797,88.383,88.353,0.58177354]
[1772073965917,0.61553797,88.383,88.36,9.50521158]
[1772073968243,9.50521158,88.4,88.361,0.58177354]
[1772073968244,0.61553797,88.395,88.361,0.58177354]
[1772073968419,0.61553797,88.395,88.37,9.50521158]
[1772073969740,0.61553797,88.393,88.362,11.317082]
[1772073969932,0.61553797,88.393,88.363,0.58177354]
[1772073970736,0.61553797,88.393,88.362,11.317082]
[1772073970737,0.61553797,88.429,88.381,0.58177354]
[1772073970921,0.61553797,88.429,88.362,39.609787]
[1772073970922,0.61553797,88.429,88.39,9.50521158]
[1772073971638,0.61553797,88.429,88.362,39.609787]
[1772073971639,0.61553797,88.429,88.4,9.50521158]
[1772073971955,9.60521158,88.44,88.367,3.69383402]
[1772073971956,0.61553797,88.419,88.382,0.58177354]
[1772073972126,0.61553797,88.419,88.38,9.50521158]
[1772073972332,0.61553797,88.419,88.39,9.50521158]
[1772073973032,0.61553797,88.419,88.38,9.50521158]
[1772073973232,39.58022345,88.428,88.306,34.07]
[1772073973233,0.61553797,88.399,88.36,9.50521158]
[1772073973844,0.61553797,88.397,88.36,10.08698512]
[1772073974969,11.31272908,88.396,88.361,0.58177354]
[1772073975149,0.61553797,88.432,88.39,9.50521158]
[1772073975441,0.61553797,88.429,88.39,9.50521158]
[1772073977045,0.61553797,88.407,88.38,9.50521158]
[1772073978620,0.61553797,88.405,88.38,9.50521158]
[1772073978831,0.61553797,88.405,88.37,9.50521158]
[1772073980441,11.31170535,88.404,88.37,9.50521158]
[1772073980636,0.61553797,88.399,88.37,0.58177354]
[1772073981037,0.61553797,88.399,88.361,0.58177354]
[1772073982251,0.61553797,88.389,88.354,0.58177354]
[1772073982436,0.61553797,88.389,88.36,9.50521158]
[1772073982756,11.92929096,88.388,88.36,10.08698512]
[1772073983253,0.61553797,88.387,88.36,0.58177354]
[1772073984657,11.314009,88.386,88.36,10.07618936]
[1772073984851,0.61553797,88.398,88.361,0.58177354]
[1772073985043,0.61553797,88.398,88.371,0.58177354]
[1772073985752,0.61553797,88.398,88.362,0.58177354]
[1772073985950,0.58576117,88.379,88.301,40.20842424]
[1772073986142,0.58576117,88.369,88.331,0.57127405]
[1772073986545,0.58576117,88.389,88.361,0.57127405]
[1772073987051,0.58576117,88.389,88.363,0.57127405]
[1772073990758,11.89810633,88.399,88.365,0.57127405]
[1772073991738,0.58576117,88.398,88.365,0.57127405]
[1772073993058,0.6196136,88.396,88.365,0.57127405]
[1772073993754,0.6196136,88.369,88.32,9.49441582]
[1772073993956,0.6196136,88.359,88.324,0.58578241]
[1772073995856,0.6196136,88.367,88.321,0.58578241]
[1772073996040,0.6196136,88.389,88.341,0.58578241]
[1772073996359,0.6196136,88.389,88.351,0.58578241]
[1772073998858,9.49441582,88.41,88.361,0.58578241]
[1772073999037,11.31093767,88.41,88.371,0.58578241]
[1772074002653,0.6196136,88.417,88.373,0.58578241]
[1772074005363,0.6196136,88.415,88.375,0.58578241]
[1772074005660,0.6196136,88.409,88.375,0.58578241]
[1772074007543,0.6196136,88.407,88.37,3.54308585]
[1772074007754,11.31119355,88.408,88.362,0.58578241]
[1772074007755,0.6196136,88.399,88.362,0.58578241]
[1772074009147,11.31247313,88.398,88.362,0.58578241]
[1772074009460,0.6196136,88.397,88.362,0.58578241]
[1772074011571,0.6196136,88.395,88.364,0.58578241]
[1772074011965,11.93108805,88.406,88.364,0.58578241]
[1772074012159,11.93108805,88.406,88.371,0.58578241]
[1772074012557,0.6196136,88.413,88.381,0.58578241]
[1772074013581,0.6196136,88.434,88.401,0.58578241]
[1772074013985,0.6196136,88.434,88.403,0.58578241]
[1772074014472,0.6196136,88.429,88.395,0.58578241]
[1772074015454,0.6196136,88.429,88.397,0.58578241]
[1772074015853,0.62227645,88.427,88.397,0.58578241]
[1772074016063,0.62227645,88.427,88.391,11.31327442]
[1772074016550,0.62227645,88.419,88.375,11.31539134]
[1772074016754,0.62227645,88.399,88.355,11.3179786]
[1772074016965,0.62227645,88.399,88.356,0.58669105]
[1772074018462,0.62227645,88.397,88.357,11.31772242]
[1772074019178,0.62227645,88.389,88.358,0.58669105]
[1772074019374,0.62227645,88.389,88.35,11.90523734]
[1772074019760,0.62227645,88.397,88.361,0.58669105]
[1772074020575,11.93500553,88.396,88.363,0.58669105]
[1772074021179,11.31272908,88.396,88.363,0.58669105]
[1772074022770,0.62227645,88.389,88.355,0.58669105]
[1772074023079,0.62227645,88.379,88.347,0.58669105]
[1772074023380,84.83317634,88.409,88.351,0.58669105]
[1772074023381,0.62227645,88.389,88.351,0.58669105]
[1772074024459,39.58891388,88.409,88.344,0.58669105]
[1772074024460,0.62227645,88.379,88.344,0.58669105]
[1772074024854,0.62227645,88.379,88.331,28.30255586]
[1772074024855,11.93721674,88.379,88.351,0.58669105]
[1772074025059,0.62227645,88.389,88.351,0.58669105]
[1772074025296,11.93590144,88.389,88.351,0.58669105]
[1772074025472,0.62227645,88.388,88.351,0.58669105]
[1772074027378,11.313881,88.387,88.352,11.31836291]
[1772074027684,11.313881,88.387,88.353,0.58669105]
[1772074028062,0.62227645,88.386,88.353,0.58669105]
[1772074028489,0.62227645,88.386,88.361,0.58669105]
[1772074029191,11.3125508,88.398,88.371,0.58669105]
[1772074029374,0.62227645,88.398,88.371,0.58669105]
[1772074031594,0.62227645,88.396,88.363,11.90360467]
[1772074031794,0.62227645,88.396,88.364,0.58669105]
[1772074032376,0.62227645,88.396,88.36,9.49515712]
[1772074032583,11.3126011,88.397,88.32,0.58669105]
[1772074032584,0.62227645,88.379,88.32,0.58669105]
[1772074032797,0.62227645,88.369,88.331,0.58669105]
[1772074033674,0.62227645,88.359,88.313,0.58669105]
[1772074033871,0.62227645,88.349,88.314,11.90992405]
[1772074034081,0.62227645,88.349,88.315,0.58669105]
[1772074034281,0.62227645,88.349,88.321,0.58669105]
[1772074034889,9.49515712,88.36,88.321,0.58669105]
[1772074034890,0.62227645,88.366,88.321,0.58669105]
[1772074035085,0.62227645,88.366,88.341,0.58669105]
[1772074035475,0.62227645,88.379,88.35,9.49515712]
[1772074035774,0.62227645,88.378,88.343,0.58669105]
[1772074036183,0.62227645,88.378,88.34,9.49515712]
[1772074036702,0.62227645,88.369,88.331,0.58669105]
[1772074037908,11.31631359,88.368,88.331,0.58669105]
[1772074038072,0.62227645,88.367,88.331,0.58669105]
[1772074038776,0.62227645,88.359,88.325,11.32175849]
[1772074039183,0.62227645,88.359,88.326,0.58669105]
[1772074039888,0.62227645,88.366,88.331,0.58669105]
[1772074040395,0.62227645,88.366,88.341,0.58669105]
[1772074040697,0.62227645,88.374,88.341,0.58669105]
[1772074042898,11.31547016,88.375,88.331,0.58669105]
[1772074042899,0.62227645,88.369,88.331,0.58669105]
[1772074043506,0.62227645,88.376,88.341,0.58669105]
[1772074045295,0.62227645,88.374,88.343,0.58669105]
[1772074046206,0.56821673,88.369,88.338,0.56862046]
[1772074046403,0.56821673,88.369,88.324,0.56862046]
[1772074046605,0.56821673,88.369,88.328,0.56862046]
[1772074046802,0.56821673,88.359,88.328,0.56862046]
[1772074047512,0.56821673,88.369,88.331,0.56862046]
[1772074048907,9.49873336,88.37,88.332,0.56862046]
[1772074048908,0.56821673,88.367,88.332,0.56862046]
[1772074049503,11.31631359,88.368,88.324,0.56862046]
[1772074049504,0.56821673,88.359,88.324,0.56862046]
[1772074049809,0.56821673,88.359,88.316,0.56862046]
[1772074050022,0.56821673,88.359,88.316,11.89154241]
[1772074050587,0.56821673,88.359,88.317,0.56862046]
[1772074051012,0.56821673,88.357,88.319,0.56862046]
[1772074051706,0.56821673,88.357,88.321,0.56862046]
[1772074053095,0.56821673,88.357,88.323,0.59512554]
[1772074054618,11.31785051,88.356,88.323,0.59512554]
[1772074054786,0.62855655,88.355,88.317,11.32279143]
[1772074054992,11.31785051,88.356,88.313,0.59512554]
[1772074054993,0.62855655,88.347,88.313,0.59512554]
[1772074055597,0.62855655,88.347,88.314,11.91835854]
[1772074055912,11.31827911,88.353,88.32,9.49873336]
[1772074056105,0.62855655,88.355,88.321,0.59512554]
[1772074056301,11.3181067,88.354,88.321,0.59512554]
[1772074056712,0.62855655,88.353,88.321,0.59512554]
[1772074057110,11.31836291,88.352,88.321,0.59512554]
[1772074057812,11.31836291,88.352,88.323,0.59512554]
[1772074058115,0.62855655,88.351,88.323,0.59512554]
[1772074060717,0.62855655,88.379,88.341,0.59512554]
[1772074061116,0.62855655,88.369,88.341,0.59512554]
[1772074062102,0.62855655,88.367,88.341,0.59512554]
[1772074062317,0.62855655,88.367,88.336,11.32029718]
[1772074062701,0.62855655,88.367,88.333,0.59512554]
[1772074063413,0.62855655,88.367,88.335,0.59512554]
[1772074064714,0.62855655,88.365,88.335,0.59512554]
[1772074069512,3.5464942,88.37,88.335,0.59512554]
[1772074069513,0.62855655,88.363,88.335,0.59512554]
[1772074069825,0.62855655,88.363,88.336,0.59512554]
[1772074070525,0.62855655,88.378,88.337,0.59512554]
[1772074071322,0.62855655,88.378,88.341,0.59512554]
[1772074071532,0.62855655,88.376,88.343,0.59512554]
[1772074072828,11.31516118,88.377,88.345,0.59512554]
[1772074073037,11.94317831,88.382,88.345,0.59512554]
[1772074073334,0.62855655,88.381,88.345,0.59512554]
[1772074073710,0.62855655,88.379,88.345,0.59512554]
[1772074073922,3.5464942,88.35,88.326,0.59512554]
[1772074074208,0.62855655,88.349,88.32,0.59512554]
[1772074076332,0.62855655,88.349,88.322,0.59433469]
[1772074076531,0.56642138,88.355,88.322,0.59433469]
[1772074077331,0.56642138,88.355,88.323,11.32207918]
[1772074077517,0.56642138,88.355,88.324,0.59433469]
[1772074078617,0.56642138,88.353,88.324,0.59433469]
[1772074079518,0.56642138,88.353,88.326,0.59433469]
[1772074080621,0.56642138,88.339,88.304,11.32439151]
[1772074080822,0.56642138,88.329,88.305,62.2]
[1772074081232,0.56642138,88.329,88.295,0.59433469]
[1772074081634,0.56642138,88.319,88.288,0.59433469]
[1772074081938,0.56642138,88.319,88.291,0.59433469]
[1772074082138,0.56642138,88.329,88.291,0.59433469]
[1772074082344,0.56642138,88.339,88.291,0.59433469]
[1772074082524,0.56642138,88.339,88.301,0.59433469]
[1772074084042,0.56642138,88.339,88.303,0.59433469]
[1772074085143,0.56642138,88.339,88.302,11.3247718]
[1772074085543,0.56642138,88.329,88.297,11.32541228]
[1772074086137,0.56642138,88.327,88.29,0.59433469]
[1772074086944,0.56642138,88.327,88.29,4.14082889]
[1772074087146,0.56642138,88.327,88.291,0.59433469]
[1772074088147,0.56642138,88.327,88.292,11.92038914]
[1772074088825,0.56642138,88.325,88.292,11.32605445]
[1772074089840,0.56642138,88.325,88.293,0.59433469]
[1772074090033,0.56642138,88.332,88.301,0.59433469]
[1772074090628,0.56642138,88.339,88.311,0.59433469]
[1772074092550,0.56642138,88.339,88.31,0.59433469]
[1772074093347,0.56642138,88.346,88.312,0.59433469]
[1772074094146,0.56642138,88.344,88.312,0.59433469]
[1772074094338,11.31925972,88.345,88.312,0.59433469]
[1772074094539,0.56642138,88.344,88.312,0.59433469]
[1772074095848,0.56642138,88.339,88.295,3.69383402]
[1772074096151,0.56642138,88.319,88.284,4.28816871]
[1772074096340,3.5464942,88.32,88.27,0.59433469]
[1772074096341,3.5464942,88.3,88.27,0.59433469]
[1772074096530,0.56642138,88.299,88.27,0.59433469]
[1772074096731,0.56642138,88.299,88.271,11.32874896]
[1772074097145,0.56642138,88.299,88.272,0.59433469]
[1772074097647,0.56642138,88.299,88.261,11.9243672]
[1772074097833,0.56642138,88.297,88.263,11.92411047]
[1772074098034,0.56642138,88.297,88.264,0.59433469]
[1772074098747,0.56642138,88.307,88.271,0.59433469]
[1772074099328,0.56642138,88.319,88.281,0.59433469]
[1772074099830,0.56642138,88.318,88.281,0.59433469]
[1772074100749,0.56642138,88.318,88.283,0.59433469]
[1772074103153,0.56642138,88.316,88.285,0.59433469]
[1772074104150,0.56642138,88.316,88.278,0.59433469]
[1772074104358,0.56642138,88.309,88.27,0.59433469]
[1772074104658,0.56642138,88.309,88.271,0.59433469]
[1772074104857,11.32284837,88.317,88.281,0.59433469]
[1772074105034,0.56642138,88.316,88.281,0.59433469]
[1772074105230,11.32310479,88.315,88.282,11.32733739]
[1772074105434,11.88952617,88.315,88.283,0.59433469]
[1772074105838,0.56027599,88.314,88.283,0.59433469]
[1772074107563,0.56027599,88.312,88.282,11.32733739]
[1772074108068,0.56027599,88.299,88.271,11.32864672]
[1772074108242,0.56027599,88.299,88.264,0.547115]
[1772074108442,0.56027599,88.299,88.264,11.32961104]
[1772074109853,0.56027599,88.297,88.265,0.547115]
[1772074110158,0.56027599,88.297,88.26,0.2]
[1772074110937,11.32528483,88.298,88.26,0.2]
[1772074110938,3.55043622,88.28,88.26,0.2]
[1772074111144,0.56027599,88.289,88.262,0.547115]
[1772074111860,0.56027599,88.308,88.271,0.547115]
[1772074112163,3.55043622,88.32,88.271,0.547115]
[1772074112164,11.88440657,88.307,88.271,0.547115]
[1772074112650,0.59406315,88.306,88.271,0.547115]
[1772074112981,11.32277907,88.318,88.28,3.55043622]
[1772074113151,11.3219144,88.325,88.291,0.56534557]
[1772074114551,11.3219144,88.325,88.293,0.56534557]
[1772074114862,0.59406315,88.329,88.293,0.56534557]
[1772074115044,14.87172809,88.33,88.293,0.56534557]
[1772074115045,0.59406315,88.327,88.293,0.56534557]
[1772074116868,11.32169463,88.326,88.293,0.56534557]
[1772074117060,11.91575778,88.326,88.293,0.56534557]
[1772074118362,0.59406315,88.323,88.293,0.56534557]
[1772074118561,3.55043622,88.32,88.293,0.56534557]
[1772074118863,4.14449937,88.32,88.293,0.56534557]
[1772074119063,0.59406315,88.32,88.293,0.56534557]
[1772074121273,11.32259196,88.319,88.293,0.56534557]
[1772074122365,0.59406315,88.318,88.293,0.56534557]
[1772074128673,0.59406315,88.299,88.269,0.56534557]
[1772074129175,3.55043622,88.29,88.256,0.56534557]
[1772074129360,0.59406315,88.279,88.25,0.2]
[1772074129877,4.14449937,88.27,88.25,0.2]
[1772074130181,0.59406315,88.27,88.25,0.2]
[1772074131372,3.69383402,88.314,88.261,0.56534557]
[1772074131373,0.59406315,88.289,88.261,0.56534557]
[1772074131553,0.59406315,88.289,88.253,0.56534557]
[1772074131554,0.59406315,88.279,88.253,0.56534557]
[1772074132959,0.59406315,88.278,88.253,0.56534557]
[1772074134475,0.59406315,88.276,88.253,0.56534557]
[1772074134975,0.59406315,88.269,88.25,0.2]
[1772074136178,0.57388559,88.276,88.25,0.78633377]